[Event "FIDE U16 Olympiad_boards_81-124"]
[Site "Eindhoven, Netherlands"]
[Date "2023.08.14"]
[Round "2.19"]
[White "Jiroajvanichakorn, Rathasart"]
[Black "Su, Ethan"]
[Result "0-1"]
[TimeControl "45min+10sec"]
[WhiteElo "1344"]
[BlackElo "1778"]

1. e4 {[%clk 00:45:17]} {[%emt 00:00:03]} c5 {[%clk 00:45:19]} {[%emt
00:00:02]} 2. d4 {[%clk 00:45:22]} {[%emt 00:00:05]} cxd4 {[%clk 00:45:25]}
{[%emt 00:00:04]} 3. c3 {[%clk 00:45:30]} dxc3 {[%clk 00:45:33]} {[%emt
00:00:03]} 4. Nxc3 {[%clk 00:45:38]} {[%emt 00:00:01]} e6 {[%clk 00:45:39]}
{[%emt 00:00:03]} 5. Nf3 {[%clk 00:45:47]} {[%emt 00:00:02]} Nc6 {[%clk
00:45:23]} {[%emt 00:00:26]} 6. Bc4 {[%clk 00:45:48]} {[%emt 00:00:09]} Bb4
{[%clk 00:45:26]} {[%emt 00:00:07]} 7. O-O {[%clk 00:45:34]} {[%emt 00:00:24]}
Bxc3 {[%clk 00:45:15]} {[%emt 00:00:20]} 8. bxc3 {[%clk 00:45:40]} {[%emt
00:00:04]} Nge7 {[%clk 00:45:22]} {[%emt 00:00:04]} 9. e5 {[%clk 00:44:27]}
{[%emt 00:01:24]} O-O {[%clk 00:43:24]} {[%emt 00:02:06]} 10. Bg5 {[%clk
00:42:09]} {[%emt 00:02:28]} Qa5 {[%clk 00:41:22]} {[%emt 00:02:14]} 11. Bxe7
{[%clk 00:37:28]} {[%emt 00:04:50]} Nxe7 {[%clk 00:41:30]} {[%emt 00:00:02]} 12.
Rc1 {[%clk 00:34:26]} {[%emt 00:03:12]} Rd8 {[%clk 00:37:56]} {[%emt 00:03:43]}
13. Re1 {[%clk 00:27:01]} {[%emt 00:07:36]} h6 {[%clk 00:29:47]} {[%emt
00:08:19]} 14. Re4 {[%clk 00:22:38]} {[%emt 00:04:33]} d5 {[%clk 00:20:09]}
{[%emt 00:09:48]} 15. exd6 {[%clk 00:21:27]} {[%emt 00:01:21]} Nf5 {[%clk
00:20:16]} {[%emt 00:00:02]} 16. Bb3 {[%clk 00:11:29]} {[%emt 00:10:09]} Rxd6
{[%clk 00:19:36]} {[%emt 00:00:50]} 17. Qe2 {[%clk 00:10:55]} {[%emt 00:00:44]}
Qd8 {[%clk 00:14:34]} {[%emt 00:05:12]} 18. Ne5 {[%clk 00:09:20]} {[%emt
00:01:44]} b6 {[%clk 00:09:19]} {[%emt 00:05:26]} 19. Qh5 {[%clk 00:08:22]}
{[%emt 00:01:07]} Qf6 {[%clk 00:06:46]} {[%emt 00:02:44]} 20. Rce1 {[%clk
00:06:26]} {[%emt 00:02:06]} g6 {[%clk 00:04:43]} {[%emt 00:02:14]} 21. Rg4
{[%clk 00:05:04]} {[%emt 00:01:31]} Kh7 {[%clk 00:04:51]} {[%emt 00:00:02]} 22.
Qh3 {[%clk 00:04:50]} {[%emt 00:00:24]} Bb7 {[%clk 00:04:44]} {[%emt 00:00:17]}
23. Rf4 {[%clk 00:04:18]} {[%emt 00:00:41]} Kg7 {[%clk 00:02:35]} {[%emt
00:02:19]} 24. Ng4 {[%clk 00:02:59]} {[%emt 00:01:30]} Qg5 {[%clk 00:02:08]}
{[%emt 00:00:37]} 25. Rc4 {[%clk 00:02:45]} {[%emt 00:00:24]} Rad8 {[%clk
00:01:21]} {[%emt 00:00:58]} 26. Rc7 {[%clk 00:02:05]} {[%emt 00:00:50]} R6d7
{[%clk 00:01:14]} {[%emt 00:00:17]} 27. Rxd7 {[%clk 00:01:28]} {[%emt
00:00:47]} Rxd7 {[%clk 00:01:23]} 28. Ne5 {[%clk 00:01:21]} {[%emt 00:00:17]}
Re7 {[%clk 00:01:28]} {[%emt 00:00:04]} 29. f3 {[%clk 00:00:35]} {[%emt
00:00:57]} Qd2 {[%clk 00:00:50]} {[%emt 00:00:48]} 30. Rd1 {[%clk 00:00:31]}
{[%emt 00:00:13]} Qe3+ {[%clk 00:00:59]} {[%emt 00:00:02]} 31. Kh1 {[%clk
00:00:37]} {[%emt 00:00:04]} Qxe5 {[%clk 00:01:06]} {[%emt 00:00:03]} 32. Qg4
{[%clk 00:00:30]} {[%emt 00:00:16]} Ne3 {[%clk 00:00:50]} {[%emt 00:00:27]} 33.
Qd4 {[%clk 00:00:31]} {[%emt 00:00:09]} Qxd4 {[%clk 00:00:59]} 34. Rxd4 {[%clk
00:00:40]} {[%emt 00:00:01]} Nd5 {[%clk 00:00:59]} {[%emt 00:00:10]} 35. c4
{[%clk 00:00:47]} {[%emt 00:00:03]} Nf6 {[%clk 00:01:07]} {[%emt 00:00:02]} 36.
Rd2 {[%clk 00:00:47]} {[%emt 00:00:09]} Rd7 {[%clk 00:01:16]} {[%emt 00:00:02]}
37. Re2 {[%clk 00:00:54]} {[%emt 00:00:03]} Bc6 {[%clk 00:01:17]} {[%emt
00:00:09]} 38. Kg1 {[%clk 00:01:01]} {[%emt 00:00:03]} Ne8 {[%clk 00:01:23]}
{[%emt 00:00:04]} 39. Kf2 {[%clk 00:01:04]} {[%emt 00:00:07]} Nd6 {[%clk
00:01:19]} {[%emt 00:00:14]} 40. g4 {[%clk 00:01:00]} {[%emt 00:00:13]} Nb7
{[%clk 00:01:24]} {[%emt 00:00:06]} 41. h4 {[%clk 00:00:40]} {[%emt 00:00:31]}
Rd3 {[%clk 00:01:28]} {[%emt 00:00:05]} 42. Re3 {[%clk 00:00:36]} {[%emt
00:00:14]} Rxe3 {[%clk 00:01:34]} {[%emt 00:00:04]} 43. Kxe3 {[%clk 00:00:44]}
{[%emt 00:00:02]} Nc5 {[%clk 00:01:44]} {[%emt 00:00:01]} 44. Bc2 {[%clk
00:00:51]} {[%emt 00:00:02]} Kf6 {[%clk 00:01:51]} {[%emt 00:00:03]} 45. f4
{[%clk 00:00:53]} {[%emt 00:00:08]} e5 {[%clk 00:01:59]} {[%emt 00:00:02]} 46.
g5+ {[%clk 00:00:56]} {[%emt 00:00:07]} hxg5 {[%clk 00:02:06]} {[%emt
00:00:02]} 47. hxg5+ {[%clk 00:01:05]} {[%emt 00:00:02]} Ke6 {[%clk 00:02:15]}
{[%emt 00:00:02]} 48. Bd1 {[%clk 00:01:06]} {[%emt 00:00:08]} exf4+ {[%clk
00:02:21]} {[%emt 00:00:04]} 49. Kxf4 {[%clk 00:01:14]} {[%emt 00:00:02]} f6
{[%clk 00:02:29]} {[%emt 00:00:02]} 50. Bg4+ {[%clk 00:01:06]} {[%emt
00:00:18]} f5 {[%clk 00:02:36]} {[%emt 00:00:03]} 51. Bd1 {[%clk 00:01:09]}
{[%emt 00:00:07]} Nd3+ {[%clk 00:02:44]} {[%emt 00:00:02]} 52. Ke3 {[%clk
00:01:15]} {[%emt 00:00:03]} Ne5 {[%clk 00:02:51]} {[%emt 00:00:04]} 53. Be2
{[%clk 00:01:22]} {[%emt 00:00:02]} Be4 {[%clk 00:02:45]} {[%emt 00:00:17]} 54.
a4 {[%clk 00:01:27]} {[%emt 00:00:05]} a5 {[%clk 00:02:44]} {[%emt 00:00:12]}
55. Bf1 {[%clk 00:01:32]} {[%emt 00:00:04]} Nd7 {[%clk 00:02:49]} {[%emt
00:00:04]} 56. Kd4 {[%clk 00:01:38]} {[%emt 00:00:04]} Nc5 {[%clk 00:02:57]}
{[%emt 00:00:03]} 0-1

[Event "FIDE U16 Olympiad_boards_81-124"]
[Site "Eindhoven, Netherlands"]
[Date "2023.08.14"]
[Round "2.20"]
[White "Mok, Gillian Xi-Lin"]
[Black "Bootsumran, Sirin"]
[Result "0-1"]
[TimeControl "45min+10sec"]
[WhiteElo "1314"]
[BlackElo "1265"]

1. e4 {[%clk 00:45:05]} {[%emt 00:00:14]} c5 {[%clk 00:45:16]} {[%emt
00:00:04]} 2. Nf3 {[%clk 00:45:12]} {[%emt 00:00:03]} e6 {[%clk 00:45:25]} 3.
d4 {[%clk 00:45:19]} {[%emt 00:00:02]} cxd4 {[%clk 00:45:33]} {[%emt 00:00:03]}
4. Nxd4 {[%clk 00:45:27]} {[%emt 00:00:01]} a6 {[%clk 00:45:42]} {[%emt
00:00:02]} 5. Nc3 {[%clk 00:45:31]} {[%emt 00:00:06]} Qc7 {[%clk 00:45:51]}
{[%emt 00:00:02]} 6. a3 {[%clk 00:45:18]} {[%emt 00:00:22]} Nf6 {[%clk
00:45:50]} {[%emt 00:00:11]} 7. Be3 {[%clk 00:45:18]} {[%emt 00:00:10]} Be7
{[%clk 00:45:06]} {[%emt 00:00:54]} 8. Be2 {[%clk 00:45:10]} {[%emt 00:00:17]}
b5 {[%clk 00:45:13]} {[%emt 00:00:05]} 9. Bf3 {[%clk 00:44:10]} {[%emt
00:01:09]} Bb7 {[%clk 00:31:26]} {[%emt 00:13:57]} 10. e5 {[%clk 00:39:35]}
{[%emt 00:04:46]} Nd5 {[%clk 00:31:17]} {[%emt 00:00:18]} 11. Nxd5 {[%clk
00:39:07]} {[%emt 00:00:38]} exd5 {[%clk 00:31:03]} {[%emt 00:00:24]} 12. O-O
{[%clk 00:37:55]} {[%emt 00:01:23]} Qxe5 {[%clk 00:28:15]} {[%emt 00:02:57]} 13.
Re1 {[%clk 00:37:47]} {[%emt 00:00:17]} O-O {[%clk 00:27:45]} {[%emt 00:00:41]}
14. g3 {[%clk 00:36:02]} {[%emt 00:01:56]} Bf6 {[%clk 00:25:43]} {[%emt
00:02:11]} 15. c3 {[%clk 00:35:05]} {[%emt 00:01:07]} Qc7 {[%clk 00:23:17]}
{[%emt 00:02:36]} 16. Bf4 {[%clk 00:34:07]} {[%emt 00:01:08]} Qb6 {[%clk
00:21:37]} {[%emt 00:01:50]} 17. Nf5 {[%clk 00:32:43]} {[%emt 00:01:34]} d4
{[%clk 00:19:59]} {[%emt 00:01:48]} 18. Bxb7 {[%clk 00:30:36]} {[%emt
00:02:17]} Qxb7 {[%clk 00:20:06]} {[%emt 00:00:03]} 19. Nxd4 {[%clk 00:30:42]}
{[%emt 00:00:05]} Nc6 {[%clk 00:17:41]} {[%emt 00:02:35]} 20. Nf5 {[%clk
00:29:09]} {[%emt 00:01:42]} Rad8 {[%clk 00:16:23]} {[%emt 00:01:28]} 21. Qg4
{[%clk 00:27:09]} {[%emt 00:02:09]} Kh8 {[%clk 00:12:56]} {[%emt 00:03:38]} 22.
Rad1 {[%clk 00:23:46]} {[%emt 00:03:33]} d5 {[%clk 00:11:05]} {[%emt 00:02:01]}
23. Nd6 {[%clk 00:17:48]} {[%emt 00:06:08]} Qd7 {[%clk 00:10:09]} {[%emt
00:01:06]} 24. Qh5 {[%clk 00:14:27]} {[%emt 00:03:30]} d4 {[%clk 00:07:24]}
{[%emt 00:02:56]} 25. Ne4 {[%clk 00:12:09]} {[%emt 00:02:28]} Qd5 {[%clk
00:04:18]} {[%emt 00:03:16]} 26. Nxf6 {[%clk 00:11:38]} {[%emt 00:00:41]} gxf6
{[%clk 00:04:27]} {[%emt 00:00:01]} 27. Qxd5 {[%clk 00:09:01]} {[%emt
00:02:48]} Rxd5 {[%clk 00:04:35]} {[%emt 00:00:01]} 28. cxd4 {[%clk 00:08:38]}
{[%emt 00:00:33]} Nxd4 {[%clk 00:02:59]} {[%emt 00:01:46]} 29. Kg2 {[%clk
00:08:41]} {[%emt 00:00:06]} Rfd8 {[%clk 00:02:58]} {[%emt 00:00:11]} 30. Rd3
{[%clk 00:07:16]} {[%emt 00:01:36]} Nc2 {[%clk 00:02:53]} {[%emt 00:00:15]} 31.
Rxd5 {[%clk 00:07:22]} {[%emt 00:00:05]} Nxe1+ {[%clk 00:03:02]} 32. Kf1 {[%clk
00:07:25]} {[%emt 00:00:07]} Rxd5 {[%clk 00:03:10]} {[%emt 00:00:01]} 33. Kxe1
{[%clk 00:07:34]} {[%emt 00:00:01]} Kg7 {[%clk 00:03:19]} {[%emt 00:00:02]} 34.
Ke2 {[%clk 00:07:38]} {[%emt 00:00:06]} Kg6 {[%clk 00:03:25]} {[%emt 00:00:04]}
35. Bd2 {[%clk 00:07:41]} {[%emt 00:00:06]} Kf5 {[%clk 00:02:53]} {[%emt
00:00:41]} 36. Bc3 {[%clk 00:07:10]} {[%emt 00:00:41]} h5 {[%clk 00:02:39]}
{[%emt 00:00:25]} 37. h3 {[%clk 00:06:46]} {[%emt 00:00:35]} Rd6 {[%clk
00:02:06]} {[%emt 00:00:42]} 38. Kf3 {[%clk 00:05:25]} {[%emt 00:01:31]} Rd3+
{[%clk 00:02:03]} {[%emt 00:00:13]} 39. Ke2 {[%clk 00:05:22]} {[%emt 00:00:13]}
Rd6 {[%clk 00:02:05]} {[%emt 00:00:08]} 40. Ke3 {[%clk 00:05:16]} {[%emt
00:00:16]} Rd5 {[%clk 00:01:06]} {[%emt 00:01:10]} 41. Kf3 {[%clk 00:05:13]}
{[%emt 00:00:13]} Rd1 {[%clk 00:00:42]} {[%emt 00:00:33]} 42. Kg2 {[%clk
00:03:52]} {[%emt 00:01:31]} Ke6 {[%clk 00:00:38]} {[%emt 00:00:15]} 43. Kf3
{[%clk 00:03:12]} {[%emt 00:00:49]} Kf5 {[%clk 00:00:43]} {[%emt 00:00:05]} 44.
Kg2 {[%clk 00:03:17]} {[%emt 00:00:05]} Rc1 {[%clk 00:00:46]} {[%emt 00:00:07]}
45. Kf3 {[%clk 00:02:46]} {[%emt 00:00:42]} Rc2 {[%clk 00:00:55]} {[%emt
00:00:01]} 46. Bd4 {[%clk 00:02:26]} {[%emt 00:00:29]} a5 {[%clk 00:00:57]}
{[%emt 00:00:09]} 47. Bc3 {[%clk 00:01:46]} {[%emt 00:00:50]} Ke6 {[%clk
00:00:46]} {[%emt 00:00:21]} 48. Bxa5 {[%clk 00:01:02]} {[%emt 00:00:54]} Rxb2
{[%clk 00:00:55]} 49. Bb4 {[%clk 00:00:50]} {[%emt 00:00:23]} Kf5 {[%clk
00:01:00]} {[%emt 00:00:05]} 50. Bc5 {[%clk 00:00:53]} {[%emt 00:00:07]} Rb3+
{[%clk 00:00:59]} {[%emt 00:00:11]} 51. Kg2 {[%clk 00:00:55]} {[%emt 00:00:08]}
Ke4 {[%clk 00:01:04]} {[%emt 00:00:05]} 52. h4 {[%clk 00:00:42]} {[%emt
00:00:24]} f5 {[%clk 00:01:12]} {[%emt 00:00:02]} 53. Be7 {[%clk 00:00:37]}
{[%emt 00:00:14]} f4 {[%clk 00:01:18]} {[%emt 00:00:04]} 54. Bd6 {[%clk
00:00:32]} {[%emt 00:00:14]} f3+ {[%clk 00:01:23]} {[%emt 00:00:06]} 55. Kh2
{[%clk 00:00:29]} {[%emt 00:00:12]} Kd3 {[%clk 00:01:32]} {[%emt 00:00:03]} 56.
g4 {[%clk 00:00:36]} {[%emt 00:00:03]} Ke4 {[%clk 00:00:53]} {[%emt 00:00:48]}
57. gxh5 {[%clk 00:00:41]} {[%emt 00:00:05]} Kf5 {[%clk 00:01:02]} {[%emt
00:00:01]} 58. Kg3 {[%clk 00:00:45]} {[%emt 00:00:06]} Rd3 {[%clk 00:01:10]}
{[%emt 00:00:03]} 59. Bc5 {[%clk 00:00:42]} {[%emt 00:00:12]} Rc3 {[%clk
00:01:13]} {[%emt 00:00:07]} 60. Bb4 {[%clk 00:00:50]} {[%emt 00:00:03]} Rc4
{[%clk 00:01:22]} 61. Be7 {[%clk 00:00:51]} {[%emt 00:00:08]} Rg4+ {[%clk
00:01:31]} {[%emt 00:00:02]} 62. Kxf3 {[%clk 00:00:54]} {[%emt 00:00:06]} Rg8
{[%clk 00:01:20]} {[%emt 00:00:21]} 63. h6 {[%clk 00:00:54]} {[%emt 00:00:11]}
Rh8 {[%clk 00:01:29]} 64. Bg5 {[%clk 00:01:02]} {[%emt 00:00:02]} f6 {[%clk
00:01:38]} {[%emt 00:00:02]} 65. Bd2 {[%clk 00:01:10]} {[%emt 00:00:02]} Rd8
{[%clk 00:01:41]} {[%emt 00:00:06]} 66. Bb4 {[%clk 00:01:14]} {[%emt 00:00:05]}
Kg6 {[%clk 00:01:47]} {[%emt 00:00:05]} 67. Kg4 {[%clk 00:01:20]} {[%emt
00:00:03]} Kxh6 {[%clk 00:01:50]} {[%emt 00:00:08]} 68. f4 {[%clk 00:01:27]}
{[%emt 00:00:02]} Kg6 {[%clk 00:01:58]} {[%emt 00:00:03]} 69. Be7 {[%clk
00:01:32]} {[%emt 00:00:05]} Rd4 {[%clk 00:02:06]} {[%emt 00:00:02]} 70. Bc5
{[%clk 00:01:37]} {[%emt 00:00:04]} f5+ {[%clk 00:02:15]} {[%emt 00:00:02]} 71.
Kf3 {[%clk 00:01:39]} {[%emt 00:00:08]} Rd3+ {[%clk 00:02:15]} {[%emt
00:00:10]} 72. Ke2 {[%clk 00:01:45]} {[%emt 00:00:03]} Rc3 {[%clk 00:02:15]}
{[%emt 00:00:12]} 73. Bd6 {[%clk 00:01:41]} {[%emt 00:00:14]} Kh5 {[%clk
00:02:16]} {[%emt 00:00:09]} 74. Be7 {[%clk 00:01:47]} {[%emt 00:00:03]} Kg4
{[%clk 00:02:25]} {[%emt 00:00:01]} 75. Kd2 {[%clk 00:01:43]} {[%emt 00:00:13]}
Rh3 {[%clk 00:02:29]} {[%emt 00:00:07]} 76. Bd6 {[%clk 00:01:33]} {[%emt
00:00:20]} Kxh4 {[%clk 00:02:35]} {[%emt 00:00:04]} 77. Kc2 {[%clk 00:01:42]}
Kg4 {[%clk 00:02:44]} {[%emt 00:00:01]} 78. Be5 {[%clk 00:01:46]} {[%emt
00:00:05]} Rxa3 {[%clk 00:02:46]} {[%emt 00:00:09]} 79. Kb2 {[%clk 00:01:52]}
{[%emt 00:00:04]} Rd3 {[%clk 00:02:54]} {[%emt 00:00:02]} 80. Bc3 {[%clk
00:02:00]} {[%emt 00:00:02]} Kxf4 {[%clk 00:03:02]} {[%emt 00:00:02]} 81. Kb3
{[%clk 00:02:09]} Ke3 {[%clk 00:03:10]} {[%emt 00:00:03]} 82. Kb4 {[%clk
00:02:17]} {[%emt 00:00:01]} Rxc3 {[%clk 00:03:19]} {[%emt 00:00:02]} 83. Kxc3
{[%clk 00:02:26]} f4 {[%clk 00:03:28]} {[%emt 00:00:01]} 84. Kb4 {[%clk
00:02:35]} f3 {[%clk 00:03:37]} {[%emt 00:00:01]} 85. Kxb5 {[%clk 00:02:44]} f2
{[%clk 00:03:46]} {[%emt 00:00:01]} 86. Kc5 {[%clk 00:02:53]} {[%emt 00:00:01]}
0-1

[Event "FIDE U16 Olympiad_boards_81-124"]
[Site "Eindhoven, Netherlands"]
[Date "2023.08.14"]
[Round "2.21"]
[White "Simpson, Michael"]
[Black "Olando, Paul Jnr"]
[Result "1-0"]
[TimeControl "45min+10sec"]
[WhiteElo "1909"]
[BlackElo "1381"]

1. Nf3 {[%clk 00:45:14]} {[%emt 00:00:06]} Nf6 {[%clk 00:45:17]} {[%emt
00:00:03]} 2. c4 {[%clk 00:45:14]} {[%emt 00:00:10]} g6 {[%clk 00:45:24]}
{[%emt 00:00:03]} 3. Nc3 {[%clk 00:45:21]} {[%emt 00:00:03]} Bg7 {[%clk
00:45:31]} {[%emt 00:00:03]} 4. e4 {[%clk 00:45:29]} {[%emt 00:00:02]} d6
{[%clk 00:45:36]} {[%emt 00:00:05]} 5. d4 {[%clk 00:45:37]} {[%emt 00:00:02]}
O-O {[%clk 00:45:42]} {[%emt 00:00:03]} 6. Be2 {[%clk 00:45:46]} {[%emt
00:00:02]} e5 {[%clk 00:45:50]} {[%emt 00:00:02]} 7. O-O {[%clk 00:45:53]}
{[%emt 00:00:02]} Nc6 {[%clk 00:45:57]} {[%emt 00:00:04]} 8. d5 {[%clk
00:46:02]} {[%emt 00:00:02]} Ne7 {[%clk 00:46:04]} {[%emt 00:00:02]} 9. b4
{[%clk 00:46:10]} {[%emt 00:00:02]} a5 {[%clk 00:46:06]} {[%emt 00:00:08]} 10.
bxa5 {[%clk 00:46:19]} {[%emt 00:00:02]} Nd7 {[%clk 00:45:01]} {[%emt
00:01:14]} 11. a4 {[%clk 00:45:54]} {[%emt 00:00:36]} f5 {[%clk 00:44:26]}
{[%emt 00:00:45]} 12. Ba3 {[%clk 00:45:31]} {[%emt 00:00:32]} Rxa5 {[%clk
00:43:40]} {[%emt 00:00:55]} 13. Bb4 {[%clk 00:45:27]} {[%emt 00:00:15]} Ra8
{[%clk 00:43:44]} {[%emt 00:00:06]} 14. Ne1 {[%clk 00:43:06]} {[%emt 00:02:31]}
f4 {[%clk 00:40:40]} {[%emt 00:03:14]} 15. Bg4 {[%clk 00:42:16]} {[%emt
00:00:59]} Nc5 {[%clk 00:37:41]} {[%emt 00:03:09]} 16. Bxc8 {[%clk 00:40:55]}
{[%emt 00:01:32]} Nxc8 {[%clk 00:37:36]} {[%emt 00:00:16]} 17. a5 {[%clk
00:39:33]} {[%emt 00:01:31]} g5 {[%clk 00:34:36]} {[%emt 00:03:10]} 18. f3
{[%clk 00:35:54]} {[%emt 00:03:48]} Rf6 {[%clk 00:34:05]} {[%emt 00:00:41]} 19.
Nd3 {[%clk 00:35:15]} {[%emt 00:00:49]} Bf8 {[%clk 00:33:45]} {[%emt 00:00:30]}
20. Bxc5 {[%clk 00:34:01]} {[%emt 00:01:26]} dxc5 {[%clk 00:33:53]} {[%emt
00:00:01]} 21. Nxe5 {[%clk 00:34:05]} {[%emt 00:00:07]} Rfa6 {[%clk 00:33:47]}
{[%emt 00:00:15]} 22. Nd3 {[%clk 00:33:22]} {[%emt 00:00:53]} Bg7 {[%clk
00:30:27]} {[%emt 00:03:29]} 23. e5 {[%clk 00:33:23]} {[%emt 00:00:10]} Rxa5
{[%clk 00:30:12]} {[%emt 00:00:25]} 24. Rxa5 {[%clk 00:33:22]} {[%emt
00:00:10]} Rxa5 {[%clk 00:30:20]} {[%emt 00:00:03]} 25. Ne4 {[%clk 00:32:43]}
{[%emt 00:00:48]} Qe7 {[%clk 00:28:20]} {[%emt 00:02:10]} 26. Re1 {[%clk
00:25:11]} {[%emt 00:07:43]} Nb6 {[%clk 00:22:21]} {[%emt 00:06:08]} 27. d6
{[%clk 00:21:16]} {[%emt 00:04:07]} cxd6 {[%clk 00:20:54]} {[%emt 00:01:36]} 28.
exd6 {[%clk 00:16:50]} {[%emt 00:04:36]} Bd4+ {[%clk 00:20:50]} {[%emt
00:00:14]} 29. Kh1 {[%clk 00:14:45]} {[%emt 00:02:14]} Qg7 {[%clk 00:17:25]}
{[%emt 00:03:36]} 30. Nexc5 {[%clk 00:12:58]} {[%emt 00:01:57]} Ra1 {[%clk
00:15:03]} {[%emt 00:02:32]} 31. Re8+ {[%clk 00:12:39]} {[%emt 00:00:29]} Kf7
{[%clk 00:15:08]} {[%emt 00:00:05]} 32. Re7+ {[%clk 00:12:39]} {[%emt
00:00:10]} Kf6 {[%clk 00:13:44]} {[%emt 00:01:34]} 33. Qxa1 {[%clk 00:05:17]}
{[%emt 00:07:33]} Bxa1 {[%clk 00:13:49]} {[%emt 00:00:04]} 34. Rxg7 {[%clk
00:05:16]} {[%emt 00:00:11]} Kxg7 {[%clk 00:13:56]} {[%emt 00:00:03]} 35. d7
{[%clk 00:05:21]} {[%emt 00:00:05]} Bf6 {[%clk 00:13:49]} {[%emt 00:00:17]} 36.
d8=Q {[%clk 00:05:03]} {[%emt 00:00:28]} Bxd8 {[%clk 00:13:56]} {[%emt
00:00:02]} 37. Ne6+ {[%clk 00:05:12]} {[%emt 00:00:02]} Kf6 {[%clk 00:13:57]}
{[%emt 00:00:08]} 38. Nxd8 {[%clk 00:05:20]} {[%emt 00:00:03]} Nxc4 {[%clk
00:14:03]} {[%emt 00:00:03]} 39. Nxb7 {[%clk 00:05:28]} {[%emt 00:00:03]} h6
{[%clk 00:13:55]} {[%emt 00:00:17]} 40. Nbc5 {[%clk 00:05:05]} {[%emt
00:00:33]} Ne3 {[%clk 00:13:25]} {[%emt 00:00:41]} 41. Ne4+ {[%clk 00:04:33]}
{[%emt 00:00:42]} Kf5 {[%clk 00:13:19]} {[%emt 00:00:15]} 42. Ndf2 {[%clk
00:04:04]} {[%emt 00:00:39]} h5 {[%clk 00:13:17]} {[%emt 00:00:12]} 43. h3
{[%clk 00:04:08]} {[%emt 00:00:07]} Nf1 {[%clk 00:12:02]} {[%emt 00:01:25]} 44.
Nd1 {[%clk 00:03:48]} {[%emt 00:00:29]} g4 {[%clk 00:10:58]} {[%emt 00:01:14]}
45. Kg1 {[%clk 00:03:44]} {[%emt 00:00:14]} Ng3 {[%clk 00:10:54]} {[%emt
00:00:14]} 46. Nxg3+ {[%clk 00:03:50]} {[%emt 00:00:05]} fxg3 {[%clk 00:11:02]}
{[%emt 00:00:02]} 47. fxg4+ {[%clk 00:03:44]} {[%emt 00:00:16]} hxg4 {[%clk
00:11:06]} {[%emt 00:00:06]} 48. Ne3+ {[%clk 00:03:52]} {[%emt 00:00:01]} 1-0